bitfinex-derivatives/quotes_BTCF0:USTF0_20241224
["timestamp","ask_amount","ask_price","bid_price","bid_amount"]
[1735058221763,0.45224255,98072.0,98070.0,0.051027]
[1735058222266,0.051027,98071.0,98063.0,0.00152956]
[1735058222462,0.051027,98071.0,98064.0,0.05103]
[1735058223066,0.3638,98072.0,98064.0,0.05103]
[1735058223364,0.3638,98072.0,98048.0,0.24316828]
[1735058223365,0.05103,98065.0,98048.0,0.24316828]
[1735058223573,0.051036,98053.0,98048.0,0.24316828]
[1735058224066,0.051036,98053.0,98047.0,0.29420728]
[1735058224771,0.3608,98055.0,98047.0,0.24316828]
[1735058225068,0.3608,98055.0,98050.0,0.051037]
[1735058225470,0.3608,98055.0,98048.0,0.003]
[1735058225669,0.3608,98055.0,98053.0,0.051036]
[1735058225970,0.3618,98055.0,98048.0,0.054039]
[1735058226165,0.3618,98055.0,98048.0,0.003]
[1735058226367,0.3608,98055.0,98048.0,0.003]
[1735058226574,0.3618,98055.0,98048.0,0.003]
[1735058226862,0.3618,98055.0,98047.0,0.003]
[1735058227273,0.051037,98052.0,98047.0,0.003]
[1735058227467,0.051037,98052.0,98032.0,0.051047]
[1735058227770,0.051037,98052.0,98048.0,0.003]
[1735058227971,0.051037,98051.0,98048.0,0.003]
[1735058228369,0.051037,98051.0,98032.0,0.051047]
[1735058228370,0.051038,98049.0,98047.0,0.003]
[1735058229764,0.05104,98045.0,98032.0,0.051047]
[1735058229967,0.051041,98043.0,98032.0,0.051047]
[1735058230174,0.3608,98047.0,98040.0,0.3608]
[1735058230472,0.05104,98046.0,98030.0,0.52561832]
[1735058230673,0.05104,98046.0,98030.0,0.52665832]
[1735058230873,0.051044,98038.0,98030.0,0.411848]
[1735058231270,0.001,98045.0,98030.0,0.411848]
[1735058231471,0.051046,98035.0,98030.0,0.411848]
[1735058231671,0.051047,98033.0,98030.0,0.411848]
[1735058232470,0.001,98045.0,98030.0,0.3608]
[1735058232684,0.051047,98033.0,98030.0,0.3608]
[1735058232872,0.051048,98031.0,98030.0,0.3608]
[1735058233171,0.051048,98031.0,98030.0,0.3678]
[1735058233672,0.051048,98031.0,98030.0,0.3608]
[1735058233870,0.051048,98031.0,98030.0,0.3678]
[1735058234576,0.052048,98031.0,98030.0,0.3678]
[1735058234770,0.001,98031.0,98030.0,0.3678]
[1735058236167,0.002,98031.0,98030.0,0.3678]
[1735058237480,0.3608,98066.0,98045.0,0.11000644]
[1735058237777,0.051033,98059.0,98051.0,0.3608]
[1735058238582,0.3608,98066.0,98051.0,0.3608]
[1735058238882,0.051034,98058.0,98051.0,0.411837]
[1735058239076,0.051034,98058.0,98055.0,0.051035]
[1735058239380,0.3608,98066.0,98055.0,0.051035]
[1735058239681,0.3608,98066.0,98051.0,0.3608]
[1735058240083,0.051036,98053.0,98051.0,0.3608]
[1735058241678,0.051036,98053.0,98051.0,0.37158937]
[1735058242684,0.057036,98053.0,98051.0,0.37158937]
[1735058243182,0.053036,98053.0,98051.0,0.37158937]
[1735058243776,0.057036,98053.0,98051.0,0.37158937]
[1735058244076,0.059036,98053.0,98051.0,0.37158937]
[1735058244284,0.053036,98053.0,98051.0,0.37158937]
[1735058244483,0.059036,98053.0,98051.0,0.37158937]
[1735058245772,0.053036,98053.0,98051.0,0.61475765]
[1735058245973,0.059036,98053.0,98051.0,0.61475765]
[1735058246382,0.057036,98053.0,98051.0,0.61475765]
[1735058246887,0.057036,98053.0,98051.0,0.37158937]
[1735058247275,0.059036,98053.0,98051.0,0.37158937]
[1735058247484,0.053036,98053.0,98051.0,0.37158937]
[1735058247684,0.059036,98053.0,98051.0,0.37158937]
[1735058247882,0.057036,98053.0,98051.0,0.37158937]
[1735058248084,0.057036,98053.0,98051.0,0.01078937]
[1735058248284,0.051039,98048.0,98045.0,0.66583879]
[1735058248484,0.05104,98046.0,98045.0,0.3608]
[1735058250483,0.05404,98046.0,98045.0,0.3608]
[1735058250689,0.051041,98043.0,98041.0,0.36542618]
[1735058250882,0.051041,98043.0,98041.0,0.36438618]
[1735058251082,0.051041,98043.0,98041.0,0.35758618]
[1735058251283,0.051042,98041.0,98040.0,0.01092555]
[1735058251591,0.005,98046.0,98036.0,0.11000644]
[1735058251787,0.051044,98037.0,98036.0,0.11000644]
[1735058252086,0.051044,98037.0,98024.0,0.89428914]
[1735058252087,0.051044,98037.0,98035.0,0.051045]
[1735058253482,0.3608,98049.0,98030.0,0.37279579]
[1735058253483,0.0108035,98046.0,98030.0,0.37279579]
[1735058253678,0.001,98037.0,98036.0,0.16105144]
[1735058253873,0.001,98037.0,98036.0,0.051045]
[1735058254786,0.001,98037.0,98034.0,0.30531339]
[1735058255283,0.051044,98038.0,98035.0,0.051045]
[1735058255481,0.002,98037.0,98035.0,0.051045]
[1735058255691,0.002,98037.0,98036.0,0.30531339]
[1735058256482,0.051044,98038.0,98036.0,0.30531339]
[1735058256692,0.001,98037.0,98036.0,0.30531339]
[1735058257085,0.051044,98038.0,98035.0,0.051045]
[1735058257287,0.002,98037.0,98035.0,0.051045]
[1735058257791,0.053045,98037.0,98033.0,0.35635939]
[1735058258086,0.053045,98037.0,98034.0,0.051046]
[1735058258687,0.3608,98038.0,98030.0,0.31626918]
[1735058258688,0.413844,98038.0,98033.0,0.051046]
[1735058258991,0.3628,98038.0,98030.0,0.31626918]
[1735058259287,0.051046,98035.0,98030.0,0.31626918]
[1735058259494,0.051046,98035.0,98030.0,0.30531339]
[1735058259789,0.051046,98035.0,98027.0,0.11000644]
[1735058259790,0.051046,98035.0,98029.0,0.01056072]
[1735058259986,0.3608,98038.0,98027.0,0.41635983]
[1735058259987,0.3618,98038.0,98027.0,0.41635983]
[1735058260191,0.3618,98038.0,98027.0,0.41531983]
[1735058260997,0.051047,98032.0,98030.0,0.001]
[1735058261288,0.051049,98028.0,98027.0,0.13335339]
[1735058261491,0.051049,98028.0,98027.0,0.13231339]
[1735058261681,0.051049,98028.0,98027.0,0.14324897]
[1735058262083,0.3608,98031.0,98027.0,0.14324897]
[1735058262288,0.3608,98031.0,98027.0,0.19429897]
[1735058262691,0.009,98028.0,98027.0,0.19429897]
[1735058262885,0.009,98028.0,98027.0,0.06198558]
[1735058263087,0.3608,98031.0,98027.0,0.06198558]
[1735058263287,0.3638,98031.0,98027.0,0.06198558]
[1735058263693,0.3638,98031.0,98027.0,0.06398558]
[1735058264491,0.3638,98031.0,98027.0,0.06298558]
[1735058264690,0.3608,98031.0,98028.0,0.051049]
[1735058265191,0.051048,98030.0,98028.0,0.051049]
[1735058266695,0.052048,98030.0,98028.0,0.051049]
[1735058267188,0.051049,98028.0,98027.0,0.01093558]
[1735058267495,0.001,98030.0,98020.0,0.412893]
[1735058267792,0.051051,98025.0,98020.0,0.47080644]
[1735058268097,0.001,98030.0,98020.0,0.3608]
[1735058268283,0.053048,98030.0,98025.0,0.051051]
[1735058268485,0.05105,98028.0,98025.0,0.051051]
[1735058268694,0.05105,98027.0,98025.0,0.051051]
[1735058269994,0.05105,98027.0,98020.0,0.48263815]
[1735058270194,0.05305,98027.0,98020.0,0.48159815]
[1735058270593,0.002,98027.0,98025.0,0.051051]
[1735058270795,0.002,98027.0,98026.0,0.1002]
[1735058271696,0.3608,98031.0,98026.0,0.1002]
[1735058271697,0.3608,98031.0,98026.0,0.15125]
[1735058271880,0.051048,98030.0,98026.0,0.15125]
[1735058272085,0.051049,98029.0,98026.0,0.15125]
[1735058273295,0.051049,98028.0,98026.0,0.05105]
[1735058273493,0.3608,98031.0,98026.0,0.001]
[1735058273699,0.05105,98027.0,98026.0,0.001]
[1735058274291,0.3608,98031.0,98026.0,0.001]
[1735058274598,0.051048,98030.0,98027.0,0.05105]
[1735058274798,0.09144255,98044.0,98042.0,0.051042]
[1735058274991,0.0466228,98051.0,98050.0,0.051038]
[1735058275192,0.15174009,98059.0,98058.0,0.051033]
[1735058275392,0.16833911,98068.0,98067.0,0.051029]
[1735058275594,0.16833911,98068.0,98067.0,0.411829]
[1735058276393,0.051023,98079.0,98073.0,0.051025]
[1735058276601,0.00318955,98078.0,98074.0,0.098]
[1735058276796,0.00318955,98077.0,98074.0,0.098]
[1735058276995,0.051026,98072.0,98067.0,0.47184644]
[1735058277300,0.05421655,98071.0,98068.0,0.1014]
[1735058277499,0.00318982,98070.0,98068.0,0.1014]
[1735058277693,0.00318982,98069.0,98068.0,0.1014]
[1735058278003,0.00318985,98069.0,98068.0,0.1014]
[1735058278388,0.01099525,98077.0,98075.0,0.051025]
[1735058278596,0.3608,98086.0,98080.0,0.051022]
[1735058278790,0.3608,98086.0,98085.0,0.051019]
[1735058279493,0.051012,98100.0,98096.0,0.051013]
[1735058279902,0.051012,98100.0,98090.0,0.10985645]
[1735058281096,0.051012,98100.0,98097.0,0.051013]
[1735058281298,0.051012,98100.0,98098.0,0.051013]
[1735058281499,0.060012,98100.0,98098.0,0.051013]
[1735058282096,0.066012,98100.0,98098.0,0.051013]
[1735058282503,0.057012,98100.0,98098.0,0.051013]
[1735058282810,0.068012,98100.0,98098.0,0.052013]
[1735058283711,0.068012,98100.0,98098.0,0.001]
[1735058286208,0.368012,98100.0,98098.0,0.001]
[1735058286409,0.051023,98079.0,98078.0,0.18371601]
[1735058286596,0.772623,98079.0,98078.0,0.18371601]
[1735058287206,0.772623,98079.0,98078.0,0.18218669]
[1735058287504,0.7216,98079.0,98069.0,0.11985252]
[1735058287696,0.3608,98070.0,98069.0,0.23970504]
[1735058287897,0.008,98079.0,98078.0,0.051023]
[1735058288100,0.012,98079.0,98078.0,0.051023]
[1735058288804,0.008,98079.0,98078.0,0.051023]
[1735058289801,0.008,98079.0,98078.0,0.054023]
[1735058290000,0.001,98079.0,98078.0,0.054023]
[1735058290501,0.00418943,98079.0,98078.0,0.054023]
[1735058291212,0.00418943,98079.0,98078.0,0.06255703]
[1735058291897,0.3608,98098.0,98097.0,0.051013]
[1735058292103,0.3608,98110.0,98107.0,0.051008]
[1735058292300,0.051008,98106.0,98100.0,0.11985252]
[1735058292502,0.3608,98110.0,98094.0,0.051014]
[1735058292697,0.3608,98101.0,98094.0,0.051014]
[1735058292901,0.051014,98096.0,98095.0,0.051014]
[1735058294715,0.3608,98101.0,98090.0,0.12869479]
[1735058294908,0.3608,98092.0,98091.0,0.051016]
[1735058296914,0.3628,98092.0,98091.0,0.051016]
[1735058298915,0.3608,98092.0,98091.0,0.051016]
[1735058299116,0.3628,98092.0,98091.0,0.051016]
[1735058299512,0.3608,98092.0,98091.0,0.051016]
[1735058299709,0.3628,98092.0,98091.0,0.051016]
[1735058300220,0.3608,98092.0,98091.0,0.051016]
[1735058303318,0.05102,98083.0,98082.0,0.00152927]
[1735058303514,0.41182,98083.0,98082.0,0.00152927]
[1735058304413,0.3608,98083.0,98073.0,0.18218669]
[1735058304721,0.411825,98074.0,98073.0,0.18218669]
[1735058305112,0.051027,98072.0,98066.0,0.051029]
[1735058305319,0.3608,98067.0,98066.0,0.051029]
[1735058306413,0.51348467,98067.0,98066.0,0.051029]
[1735058306614,0.51648467,98067.0,98066.0,0.051029]
[1735058307019,0.51648467,98067.0,98048.0,0.18371644]
[1735058307020,0.051032,98061.0,98048.0,0.18371644]
[1735058307218,0.51648467,98067.0,98054.0,0.051036]
[1735058307219,0.3608,98055.0,98054.0,0.051036]
[1735058308318,0.36236001,98067.0,98066.0,0.051029]
[1735058308512,0.15268467,98090.0,98066.0,0.051029]
[1735058308717,0.15268467,98090.0,98089.0,0.051017]
[1735058309130,0.3608,98092.0,98089.0,0.051017]
[1735058309823,0.3608,98092.0,98090.0,0.051017]
[1735058310023,0.3608,98092.0,98082.0,0.051021]
[1735058310218,0.051019,98086.0,98070.0,0.12991791]
[1735058310427,0.051019,98086.0,98083.0,0.05102]
[1735058310616,0.3608,98084.0,98083.0,0.05102]
[1735058312330,0.3658,98084.0,98083.0,0.05102]
[1735058313814,0.3678,98084.0,98083.0,0.05102]
[1735058314319,0.05102,98083.0,98081.0,0.24334904]
[1735058314716,0.051022,98080.0,98076.0,0.18261127]
[1735058315126,0.36832001,98084.0,98076.0,0.18261127]
[1735058315316,0.007,98084.0,98076.0,0.18261127]
[1735058315523,0.3608,98102.0,98091.0,0.051016]
[1735058316726,0.051016,98091.0,98083.0,0.0921]
[1735058316925,0.051016,98091.0,98089.0,0.051017]
[1735058317127,0.001,98084.0,98083.0,0.14312]
[1735058317632,0.001,98084.0,98083.0,0.15002518]
[1735058317933,0.002,98091.0,98088.0,0.051017]
[1735058318733,0.002,98091.0,98089.0,0.051017]
[1735058319230,0.01,98091.0,98089.0,0.051017]
[1735058319732,0.008,98091.0,98089.0,0.051017]
[1735058320617,0.004,98091.0,98089.0,0.051017]
[1735058320931,0.012,98091.0,98089.0,0.051017]
[1735058321134,0.012,98091.0,98088.0,0.24334904]
[1735058321135,0.051017,98090.0,98088.0,0.24334904]
[1735058322433,0.059017,98090.0,98088.0,0.24334904]
[1735058322625,0.059017,98090.0,98087.0,0.24334904]
[1735058323429,0.051018,98089.0,98087.0,0.24334904]
[1735058324733,0.062018,98089.0,98087.0,0.24334904]
[1735058324928,0.003,98089.0,98088.0,0.051018]
[1735058325135,0.011,98089.0,98088.0,0.051018]
[1735058325432,0.36136001,98092.0,98091.0,0.051016]
[1735058325637,0.3608,98092.0,98091.0,0.051016]
[1735058327128,0.3648,98092.0,98091.0,0.051016]
[1735058327732,0.3698,98092.0,98091.0,0.052016]
[1735058327939,0.3738,98092.0,98091.0,0.052016]
[1735058328138,0.3648,98092.0,98091.0,0.051016]
[1735058328335,0.3648,98092.0,98089.0,0.30304918]
[1735058328533,0.3648,98092.0,98091.0,0.001]
[1735058328534,0.423816,98092.0,98091.0,0.001]
[1735058329426,0.422816,98092.0,98091.0,0.001]
[1735058330029,0.419816,98092.0,98091.0,0.001]
[1735058330229,0.422816,98092.0,98091.0,0.001]
[1735058330836,0.051024,98076.0,98065.0,0.1013]
[1735058331039,0.772624,98076.0,98070.0,0.12991791]
[1735058331724,0.772624,98076.0,98070.0,0.18094491]
[1735058331923,0.772624,98076.0,98071.0,0.051027]
[1735058332329,0.772624,98076.0,98073.0,0.051025]
[1735058332530,0.7216,98076.0,98075.0,0.051025]
[1735058333534,0.87528467,98076.0,98075.0,0.051025]
[1735058334236,0.87828467,98076.0,98075.0,0.051025]
[1735058334438,0.92930867,98076.0,98075.0,0.051025]
[1735058334638,0.92930867,98076.0,98069.0,0.00152941]
[1735058334832,0.92930867,98076.0,98069.0,0.05255641]
[1735058335033,0.051025,98075.0,98069.0,0.05255641]
[1735058335340,0.051025,98075.0,98070.0,0.051027]
[1735058335739,0.87880468,98076.0,98074.0,0.051025]
[1735058335931,0.87828467,98076.0,98074.0,0.051025]
[1735058336332,0.051026,98073.0,98070.0,0.18268651]
[1735058336539,0.001,98075.0,98073.0,0.051025]
[1735058336840,0.72212001,98076.0,98070.0,0.18268651]
[1735058337041,0.003,98076.0,98075.0,0.051025]
[1735058337243,0.004,98076.0,98075.0,0.051025]
[1735058337432,0.48285369,98090.0,98089.0,0.051017]
[1735058337636,0.3608,98090.0,98089.0,0.051017]
[1735058339045,0.3608,98090.0,98089.0,0.05785235]
[1735058339342,0.12205369,98112.0,98089.0,0.05785235]
[1735058339547,0.12205369,98112.0,98111.0,0.051006]
[1735058340138,0.48285369,98112.0,98111.0,0.051006]
[1735058340338,0.3608,98112.0,98111.0,0.051006]
[1735058340741,0.3698,98112.0,98111.0,0.052006]
[1735058341836,0.3768,98112.0,98111.0,0.053006]
[1735058344152,0.3768,98112.0,98111.0,0.29653659]
[1735058345449,0.3768,98112.0,98111.0,0.002]
[1735058346658,0.38383035,98112.0,98111.0,0.002]
[1735058346940,0.48163035,98112.0,98111.0,0.002]
[1735058351749,0.48163035,98112.0,98102.0,0.05101]
[1735058351947,0.051006,98111.0,98104.0,0.051009]
[1735058352842,0.48163035,98112.0,98104.0,0.051009]
[1735058353051,0.05101,98103.0,98102.0,0.001]
[1735058353246,0.3608,98106.0,98080.0,0.12991791]
[1735058353551,0.051019,98086.0,98077.0,0.00144]
[1735058353736,0.0992,98085.0,98076.0,0.051024]
[1735058353934,0.0992,98085.0,98070.0,0.18094491]
[1735058354140,0.0992,98085.0,98071.0,0.051027]
[1735058354751,0.0992,98085.0,98066.0,0.36728342]
[1735058354752,0.0992,98085.0,98084.0,0.02465819]
[1735058355049,0.0992,98085.0,98066.0,0.36728342]
[1735058355050,0.051027,98070.0,98066.0,0.0014]
[1735058355350,0.411827,98070.0,98066.0,0.051029]
[1735058355543,0.3608,98070.0,98068.0,0.051028]
[1735058356643,0.411827,98070.0,98069.0,0.00552941]
[1735058357454,0.411827,98070.0,98069.0,0.00752941]
[1735058358251,0.412827,98070.0,98069.0,0.00552941]
[1735058359053,0.414827,98070.0,98069.0,0.00152941]
[1735058360844,0.3638,98070.0,98069.0,0.00152941]
[1735058364039,0.3638,98070.0,98054.0,0.0974]
[1735058364243,0.051037,98052.0,98051.0,0.24353059]
[1735058364443,0.411837,98052.0,98051.0,0.24353059]
[1735058365452,0.411837,98052.0,98046.0,0.051039]
[1735058365750,0.411837,98052.0,98051.0,0.005]
[1735058366240,0.414837,98052.0,98046.0,0.051039]
[1735058367054,0.415837,98052.0,98046.0,0.051039]
[1735058367253,0.42387051,98052.0,98046.0,0.051039]
[1735058367651,0.37283351,98052.0,98042.0,0.1043]
[1735058367954,0.3608,98043.0,98042.0,0.1043]
[1735058369541,0.3618,98043.0,98042.0,0.1043]
[1735058370750,0.001,98043.0,98042.0,0.1043]
[1735058370961,0.3608,98063.0,98062.0,0.051031]
[1735058371554,0.22851791,98080.0,98062.0,0.051031]
[1735058371555,0.05102,98085.0,98081.0,0.051022]
[1735058371751,0.3608,98089.0,98079.0,0.3608]
[1735058371950,0.3608,98089.0,98079.0,0.411822]
[1735058372146,0.3608,98089.0,98079.0,0.3608]
[1735058372147,0.051022,98081.0,98079.0,0.3608]
[1735058372455,0.3608,98080.0,98064.0,0.05103]
[1735058372649,0.3608,98072.0,98064.0,0.05103]
[1735058372850,0.3608,98070.0,98051.0,0.051037]
[1735058373057,0.3608,98058.0,98051.0,0.051037]
[1735058373256,0.411834,98058.0,98045.0,0.3608]
[1735058373559,0.3608,98058.0,98056.0,0.051035]
[1735058376259,0.051035,98055.0,98054.0,0.003]
[1735058376755,0.051035,98055.0,98054.0,0.001]
[1735058377141,0.051035,98055.0,98047.0,0.149739]
[1735058377348,0.052035,98055.0,98047.0,0.149739]
[1735058378257,0.001,98055.0,98047.0,0.051039]
[1735058378557,0.051038,98050.0,98047.0,0.051039]
[1735058379356,0.00319084,98049.0,98047.0,0.051039]
[1735058379550,0.00319084,98048.0,98047.0,0.051039]
[1735058382149,0.00419084,98048.0,98047.0,0.051039]
[1735058383062,0.00419087,98048.0,98047.0,0.051039]
[1735058383553,0.3608,98070.0,98068.0,0.051028]
[1735058383754,0.3608,98070.0,98060.0,0.12991791]
[1735058383949,0.12149181,98071.0,98060.0,0.12991791]
[1735058383950,0.12149181,98071.0,98069.0,0.051028]
[1735058384355,0.12149181,98076.0,98070.0,0.0985]
[1735058384556,0.051023,98078.0,98074.0,0.051025]
[1735058385766,0.057023,98078.0,98074.0,0.052025]
[1735058386362,0.055023,98078.0,98074.0,0.051025]
[1735058386659,0.057023,98078.0,98074.0,0.051025]
[1735058387162,0.055023,98078.0,98074.0,0.051025]
[1735058387462,0.06616182,98078.0,98074.0,0.051025]
[1735058387856,0.06616182,98078.0,98074.0,0.29529787]
[1735058388963,0.06316182,98078.0,98074.0,0.051025]
[1735058389165,0.06516182,98078.0,98074.0,0.051025]
[1735058390564,0.006,98078.0,98074.0,0.051025]
[1735058392166,0.004,98078.0,98074.0,0.051025]
[1735058392354,0.008,98078.0,98074.0,0.051025]
[1735058392664,0.008,98078.0,98074.0,0.052025]
[1735058392665,0.013,98078.0,98074.0,0.052025]
[1735058393062,0.051023,98079.0,98074.0,0.051025]
[1735058393365,0.006,98078.0,98074.0,0.051025]
[1735058393661,0.006,98078.0,98074.0,0.052025]
[1735058393662,0.011,98078.0,98074.0,0.052025]
[1735058393866,0.013,98078.0,98074.0,0.052025]
[1735058395362,0.060023,98079.0,98074.0,0.052025]
[1735058395564,0.00519001,98078.0,98074.0,0.052025]
[1735058395770,0.00319001,98077.0,98074.0,0.052025]
[1735058395967,0.00319001,98076.0,98074.0,0.052025]
[1735058396266,0.002,98078.0,98070.0,0.3608]
[1735058396267,0.00319001,98075.0,98070.0,0.3608]
[1735058396466,0.00319001,98074.0,98070.0,0.3608]
[1735058396663,0.00319001,98073.0,98070.0,0.3608]
[1735058396869,0.00319001,98072.0,98070.0,0.3608]
[1735058397165,0.00799792,98080.0,98070.0,0.3608]
[1735058397166,0.00319001,98071.0,98070.0,0.3608]
[1735058397366,0.00319001,98071.0,98066.0,0.24427287]
[1735058397367,0.051029,98067.0,98066.0,0.24427287]
[1735058397559,0.41501901,98067.0,98066.0,0.24427287]
[1735058397960,0.41501976,98067.0,98066.0,0.21236497]
[1735058398367,0.051033,98059.0,98058.0,0.30534109]
[1735058398562,0.051033,98059.0,98050.0,0.36780931]
[1735058398563,0.051037,98051.0,98050.0,0.0014]
[1735058398768,0.05104,98046.0,98040.0,0.30534109]
[1735058399070,0.36399076,98051.0,98040.0,0.30534109]
[1735058399071,0.00319076,98045.0,98042.0,0.051042]
[1735058399271,0.00319076,98044.0,98042.0,0.051042]
[1735058399474,0.00319076,98043.0,98042.0,0.051042]
[1735058400371,0.09133012,98056.0,98042.0,0.3658]
[1735058400569,0.09133012,98056.0,98055.0,0.051035]
[1735058401771,0.3608,98074.0,98052.0,0.40184109]
[1735058402071,0.3608,98074.0,98063.0,0.051031]
[1735058402072,0.051026,98072.0,98063.0,0.051031]
[1735058402264,0.051033,98060.0,98055.0,0.3608]
[1735058402463,0.3608,98056.0,98053.0,0.02806277]
[1735058402672,0.00510516,98055.0,98052.0,0.40332109]
[1735058402968,0.00510516,98054.0,98052.0,0.30534109]
[1735058403166,0.00510516,98053.0,98052.0,0.30534109]
[1735058403476,0.006,98072.0,98052.0,0.30534109]
[1735058403668,0.00510483,98071.0,98064.0,0.05103]
[1735058403972,0.12196695,98067.0,98064.0,0.05103]
[1735058404174,0.00510483,98066.0,98064.0,0.05103]
[1735058404374,0.00510483,98065.0,98064.0,0.05103]
[1735058405176,0.00510455,98065.0,98060.0,0.12991459]
[1735058405472,0.00510455,98064.0,98062.0,0.051031]
[1735058405673,0.007,98065.0,98064.0,0.05103]
[1735058405870,0.01210453,98065.0,98064.0,0.05103]
[1735058406071,0.09132417,98067.0,98064.0,0.14683]
[1735058406265,0.12196695,98074.0,98073.0,0.051026]
[1735058406569,0.3608,98095.0,98082.0,0.051021]
[1735058406768,0.15245868,98086.0,98085.0,0.051019]
[1735058407072,0.21344216,98106.0,98091.0,0.051016]
[1735058407276,0.21344216,98106.0,98091.0,0.411816]
[1735058408265,0.051007,98109.0,98102.0,0.05101]
[1735058408573,0.051007,98109.0,98104.0,0.051009]
[1735058408969,0.051007,98109.0,98106.0,0.051008]
[1735058409274,0.009,98109.0,98106.0,0.051008]
[1735058409474,0.009,98109.0,98107.0,0.051008]
[1735058409871,0.013,98109.0,98107.0,0.051008]
[1735058411475,0.018,98109.0,98107.0,0.052008]
[1735058411980,0.018,98109.0,98107.0,0.053008]
[1735058412479,0.00318911,98108.0,98107.0,0.053008]
[1735058413061,0.1001,98131.0,98107.0,0.053008]
[1735058413274,0.1001,98131.0,98124.0,0.3608]
[1735058413476,0.3608,98140.0,98132.0,0.050995]
[1735058413673,0.3608,98140.0,98138.0,0.050992]
[1735058413875,0.3608,98140.0,98116.0,0.3608]
[1735058414073,0.3608,98117.0,98103.0,0.01030239]
[1735058414372,0.060007,98108.0,98103.0,0.00239]
[1735058414575,0.061007,98108.0,98103.0,0.00239]
[1735058415079,0.1009,98115.0,98103.0,0.00239]
[1735058415276,0.1009,98115.0,98104.0,0.05253792]
[1735058415878,0.001,98108.0,98104.0,0.05253792]
[1735058416075,0.00510256,98107.0,98104.0,0.05253792]
[1735058416377,0.00510256,98106.0,98104.0,0.05253792]
[1735058416578,0.00510256,98105.0,98104.0,0.05253792]
[1735058417873,0.3608,98117.0,98116.0,0.051003]
[1735058418079,0.00510197,98117.0,98116.0,0.38884414]
[1735058419074,0.00510197,98117.0,98116.0,0.39727844]
[1735058420279,0.00510197,98117.0,98116.0,0.39827844]
[1735058421085,0.0051011,98117.0,98116.0,0.39827844]
[1735058421279,0.050994,98134.0,98127.0,0.050997]
[1735058421476,0.0051011,98133.0,98128.0,0.050997]
[1735058421684,0.0051011,98132.0,98128.0,0.050997]
[1735058421878,0.0051011,98131.0,98128.0,0.050997]
[1735058422184,0.0051011,98130.0,98128.0,0.050997]
[1735058422378,0.050995,98133.0,98128.0,0.050997]
[1735058422379,0.0051011,98129.0,98128.0,0.050997]
[1735058422878,0.0051011,98129.0,98128.0,0.001]
[1735058423182,0.0051011,98129.0,98128.0,0.051997]
[1735058423384,0.0051011,98129.0,98128.0,0.050997]
[1735058423585,0.0051011,98129.0,98128.0,0.051997]
[1735058424678,0.001,98130.0,98128.0,0.051997]
[1735058424982,0.0976,98151.0,98150.0,0.050986]
[1735058425185,0.1007878,98151.0,98150.0,0.050986]
[1735058425684,0.14596408,98161.0,98160.0,0.05098]
[1735058425887,0.0976,98179.0,98175.0,0.050973]
[1735058426077,0.0976,98179.0,98175.0,0.411773]
[1735058426277,0.0976,98179.0,98178.0,0.050971]
[1735058426789,0.10078621,98179.0,98178.0,0.050971]
[1735058427088,0.00318621,98179.0,98178.0,0.050971]
[1735058427300,0.21082473,98192.0,98191.0,0.050964]
[1735058427479,0.21082473,98192.0,98191.0,0.411764]
[1735058427786,0.21592183,98192.0,98191.0,0.411764]
[1735058428381,0.21082473,98192.0,98191.0,0.3608]
[1735058428583,0.00907481,98215.0,98191.0,0.3608]
[1735058428782,0.3608,98221.0,98208.0,0.3608]
[1735058428977,0.1026,98220.0,98200.0,0.49063083]
[1735058429196,0.3608,98212.0,98200.0,0.3608]
[1735058429491,0.1034,98211.0,98200.0,0.3608]
[1735058429692,0.1034,98211.0,98200.0,0.49063083]
[1735058430282,0.1034,98211.0,98200.0,0.55515227]
[1735058431191,0.050958,98204.0,98200.0,0.3608]
[1735058431494,0.0974,98203.0,98194.0,0.050962]
[1735058431791,0.0050976,98202.0,98194.0,0.050962]
[1735058431987,0.0050976,98201.0,98194.0,0.050962]
[1735058432184,0.0050976,98200.0,98198.0,0.411761]
[1735058432390,0.0050976,98199.0,98198.0,0.411761]
[1735058433091,0.0050976,98199.0,98198.0,0.38882406]
[1735058433295,0.005097,98199.0,98198.0,0.33886306]
[1735058433486,0.005097,98199.0,98198.0,0.38982406]
[1735058433789,0.0974,98203.0,98202.0,0.050959]
[1735058434380,0.00865299,98219.0,98198.0,0.33886306]
[1735058434585,0.1023,98218.0,98216.0,0.050951]
[1735058434888,0.1023,98218.0,98217.0,0.3608]
[1735058435790,0.36960605,98230.0,98217.0,0.3608]
[1735058435990,0.3608,98230.0,98222.0,0.050948]
[1735058436193,0.1963,98229.0,98222.0,0.050948]
[1735058436488,0.1963,98229.0,98220.0,0.19435227]
[1735058436489,0.1963,98229.0,98228.0,0.050945]
[1735058436682,0.0954,98229.0,98228.0,0.050945]
[1735058439096,0.00888488,98238.0,98228.0,0.001]
[1735058439298,0.00318479,98237.0,98234.0,0.050942]
[1735058439596,0.0944,98243.0,98228.0,0.19522311]
[1735058439793,0.00318475,98242.0,98228.0,0.19522311]
[1735058439992,0.0944,98243.0,98228.0,0.19522311]
[1735058439993,0.00318475,98241.0,98228.0,0.19522311]
[1735058440201,0.00318465,98240.0,98239.0,0.050939]
[1735058441693,0.00318465,98240.0,98239.0,0.051939]
[1735058441888,0.00318465,98240.0,98239.0,0.001]
[1735058442291,0.00318467,98240.0,98236.0,0.050941]
[1735058442589,0.00318467,98239.0,98236.0,0.050941]
[1735058442791,0.00318467,98238.0,98236.0,0.050941]
[1735058442992,0.00318467,98237.0,98236.0,0.050941]
[1735058445298,0.00318467,98237.0,98236.0,0.411741]
[1735058447185,0.3608,98254.0,98236.0,0.411741]
[1735058447388,0.0031842,98253.0,98244.0,0.1941466]
[1735058447587,0.3608,98254.0,98245.0,0.0938]